bitfinex/quotes_ETHUSD_20260125
["timestamp","ask_amount","ask_price","bid_price","bid_amount"]
[1769372992017,0.001,2805.6,2804.9,10.83684349]
[1769372992356,0.001,2805.6,2804.8,0.002]
[1769372992516,0.001,2805.6,2804.8,10.92452717]
[1769372992711,0.001,2805.6,2805.1,10.83684349]
[1769372996239,0.001,2805.6,2805.0,0.08568368]
[1769372996240,0.001,2805.6,2805.2,10.92252717]
[1769372997354,0.001,2805.6,2805.2,10.83684349]
[1769372997520,0.001,2805.6,2805.0,0.97693185]
[1769372997719,0.001,2805.6,2805.0,10.92252717]
[1769372997720,0.001,2805.4,2805.0,10.92252717]
[1769372998522,0.001,2805.4,2805.0,11.81377808]
[1769372998723,0.001,2805.4,2805.0,10.92252717]
[1769372999051,0.001,2805.4,2805.0,11.81377491]
[1769372999418,0.001,2805.4,2805.0,10.92252717]
[1769372999847,0.001,2805.4,2805.0,11.81379057]
[1769373000149,0.001,2805.4,2805.0,10.83684349]
[1769373000352,0.001,2805.4,2804.8,0.002]
[1769373000534,0.001,2805.4,2804.9,10.92252717]
[1769373000733,0.001,2805.8,2805.4,10.83684349]
[1769373001054,0.001,2805.8,2804.9,10.92252717]
[1769373001350,0.001,2805.8,2805.2,10.83684349]
[1769373001649,10.7361298,2807.0,2805.7,10.92252717]
[1769373002160,10.7361298,2806.7,2805.4,10.83684349]
[1769373002475,12.20942717,2806.6,2805.5,0.83268368]
[1769373002754,12.20942717,2806.6,2805.5,11.66952717]
[1769373003150,1.47329737,2806.6,2805.5,11.58384349]
[1769373003345,4.88756033,2806.8,2805.5,11.58384349]
[1769373003560,10.26045031,2806.7,2805.5,10.83684349]
[1769373003734,10.26045031,2806.1,2804.9,10.70346866]
[1769373003935,10.26045031,2806.1,2805.0,0.08568368]
[1769373004268,10.26045031,2806.1,2805.0,10.78915234]
[1769373004562,10.26045031,2806.1,2805.2,0.08568368]
[1769373004862,10.26045031,2806.4,2805.2,0.08568368]
[1769373005242,10.26045031,2806.4,2805.2,10.78915234]
[1769373006133,0.89067788,2806.9,2805.6,10.78915234]
[1769373006457,11.15119607,2806.7,2805.2,0.08568368]
[1769373006657,10.26045031,2806.7,2805.4,0.08568368]
[1769373006833,10.26045031,2806.7,2805.4,10.78915234]
[1769373008154,10.26045031,2806.7,2805.6,10.70346866]
[1769373008351,1.43852942,2806.6,2805.6,10.70346866]
[1769373008551,5.01555748,2806.8,2805.6,10.70346866]
[1769373008756,10.26045031,2806.7,2805.4,11.68028701]
[1769373009068,10.26045031,2806.7,2805.4,10.78915234]
[1769373009228,10.26145031,2806.7,2805.4,10.78915234]
[1769373010234,10.26145031,2806.7,2805.4,11.68028801]
[1769373010533,10.26145031,2806.7,2805.4,10.78915234]
[1769373010763,1.52770021,2806.6,2805.6,10.70346866]
[1769373011874,0.001,2806.7,2805.7,10.78915234]
[1769373012033,10.26145031,2806.7,2805.4,10.78915234]
[1769373012834,0.001,2806.7,2805.8,10.70346866]
[1769373013030,10.26145031,2806.7,2805.6,10.70346866]
[1769373014754,0.001,2806.7,2805.6,10.70346866]
[1769373015065,0.001,2806.7,2805.7,10.70346866]
[1769373015766,10.80901392,2806.7,2805.7,10.70346866]
[1769373016732,0.001,2806.7,2805.7,10.70346866]
[1769373018105,0.001,2806.7,2805.4,10.25621796]
[1769373018106,10.80901392,2806.7,2805.4,10.25621796]
[1769373018276,10.80801392,2806.5,2805.4,10.25621796]
[1769373018600,10.80801392,2806.4,2805.2,11.14741882]
[1769373019099,10.80801392,2806.4,2805.3,11.23306986]
[1769373019390,10.80901392,2806.7,2805.5,10.34190164]
[1769373019593,0.001,2806.7,2805.8,10.34190164]
[1769373019908,0.001,2806.7,2806.0,10.34190164]
[1769373020573,0.001,2806.7,2806.2,10.34190164]
[1769373021393,0.001,2806.7,2806.0,0.08568368]
[1769373021901,0.001,2806.7,2806.0,10.34190164]
[1769373024392,0.001,2806.7,2805.7,11.23292686]
[1769373024566,0.001,2806.7,2805.8,0.08568368]
[1769373024765,0.001,2806.7,2805.8,10.34190164]
[1769373026695,0.001,2806.7,2806.0,10.34190164]
[1769373027070,0.001,2806.7,2806.0,10.25621796]
[1769373027493,0.001,2806.7,2806.0,10.25135018]
[1769373027895,0.001,2806.7,2805.8,0.89100707]
[1769373028098,0.001,2806.7,2805.7,11.23291543]
[1769373028300,0.001,2806.7,2806.2,10.25621796]
[1769373028501,0.001,2806.7,2805.9,10.25621796]
[1769373028668,0.001,2806.7,2805.7,0.08568368]
[1769373028868,0.001,2806.7,2805.9,0.08568368]
[1769373029698,0.001,2806.7,2805.9,10.34190164]
[1769373030510,0.001,2806.7,2805.7,0.83168368]
[1769373030668,0.001,2806.7,2805.6,10.25621796]
[1769373030669,10.80901392,2806.7,2805.6,10.25621796]
[1769373031698,10.80901392,2806.7,2805.7,0.08568368]
[1769373032004,10.80901392,2806.7,2805.7,10.34190164]
[1769373032791,0.001,2806.5,2805.9,0.08568368]
[1769373033284,0.001,2806.5,2805.7,10.34190164]
[1769373034117,0.001,2806.5,2805.7,10.25621796]
[1769373034282,10.72090143,2806.0,2804.8,11.56643121]
[1769373034479,1.47155809,2805.9,2804.8,10.58942128]
[1769373034980,12.19245952,2805.9,2804.8,10.58942128]
[1769373035292,12.19245952,2805.9,2804.2,10.58742128]
[1769373035293,10.72090143,2805.4,2804.2,10.58742128]
[1769373035491,10.72090143,2805.4,2804.3,0.08568368]
[1769373035690,10.72090143,2805.4,2804.1,10.58742128]
[1769373035691,10.72090143,2805.4,2804.2,0.08568368]
[1769373035890,1.56066944,2805.3,2804.2,0.08568368]
[1769373036691,1.56066944,2805.3,2804.2,10.67310496]
[1769373037103,12.28157087,2805.3,2804.0,0.83168368]
[1769373037492,12.28157087,2805.3,2804.2,0.08568368]
[1769373037888,13.17274973,2805.3,2804.1,10.58742128]
[1769373038089,16.03285585,2805.2,2803.9,0.08568368]
[1769373038603,3.99467945,2804.9,2803.8,10.58742128]
[1769373038805,10.72090143,2805.1,2803.6,0.002]
[1769373038806,0.2335703,2805.1,2804.0,10.67310496]
[1769373039779,0.2335703,2805.1,2804.0,10.58742128]
[1769373040107,1.31727497,2805.2,2804.2,10.67310496]
[1769373040510,1.31727497,2805.2,2803.9,14.66778441]
[1769373040714,10.72090143,2805.1,2803.7,0.08568368]
[1769373041811,10.72090143,2805.1,2803.7,10.67310496]
[1769373042720,10.72090143,2804.3,2802.2,0.002]
[1769373042917,10.72090143,2804.3,2802.1,0.002]
[1769373042918,0.002,2802.2,2802.1,0.002]
[1769373043083,0.1862,2802.5,2802.1,0.002]
[1769373048888,11.61272557,2803.3,2802.1,0.002]
[1769373049317,12.0071662,2803.3,2802.1,0.002]
[1769373049494,12.37639436,2803.2,2802.1,0.002]
[1769373053924,12.37639436,2803.2,2801.9,10.58249939]
[1769373055308,1.65549293,2803.2,2802.1,10.58742128]
[1769373055524,0.747,2803.2,2802.1,10.58742128]
[1769373057136,10.95447173,2803.4,2802.1,10.58942128]
[1769373057331,0.001,2803.0,2802.1,10.58942128]
[1769373058333,0.001,2803.0,2802.3,10.58742128]
[1769373059612,0.001,2803.0,2802.4,10.58742128]
[1769373061756,0.001,2803.0,2802.1,10.58942128]
[1769373062117,10.72090143,2802.8,2802.1,0.002]
[1769373062648,0.001,2803.0,2801.1,10.58742128]
[1769373062649,10.72090143,2802.4,2801.1,10.58742128]
[1769373062952,10.95447173,2802.2,2800.9,0.002]
[1769373063246,11.05638378,2802.0,2800.9,0.002]
[1769373063416,1.53952307,2801.9,2800.9,0.002]
[1769373065245,2.43178801,2801.9,2800.9,0.002]
[1769373065447,11.05638378,2801.8,2800.9,0.002]
[1769373065747,11.44036092,2801.8,2800.9,0.002]
[1769373066272,1.14508244,2801.9,2800.9,10.83397045]
[1769373066447,0.2335703,2802.3,2801.1,10.83197045]
[1769373066810,11.05638378,2802.4,2801.1,10.83197045]
[1769373067143,10.95081348,2802.3,2800.9,0.002]
[1769373067350,0.89215616,2802.2,2800.9,0.002]
[1769373067726,11.05638378,2802.1,2800.9,0.002]
[1769373067923,0.2335703,2801.9,2800.9,0.002]
[1769373068236,11.05638378,2801.9,2800.9,0.002]
[1769373068834,1.19485399,2802.0,2800.9,10.83397045]
[1769373069033,0.747,2802.1,2801.3,0.002]
[1769373070166,0.2335703,2802.4,2801.3,0.002]
[1769373070372,0.747,2802.4,2801.3,10.83397045]
[1769373070533,3.91975376,2802.9,2801.4,10.91765413]
[1769373070534,0.128,2802.9,2801.4,10.91765413]
[1769373070874,0.89290338,2803.0,2801.7,10.83197045]
[1769373070875,0.001,2803.0,2801.7,10.83197045]
[1769373071027,0.129,2803.0,2801.7,10.83197045]
[1769373071232,0.001,2803.0,2801.9,10.83197045]
[1769373072760,0.001,2803.0,2802.1,10.83197045]
[1769373073363,0.001,2803.0,2801.8,10.83197045]
[1769373074170,10.82381348,2803.0,2801.4,10.83197045]
[1769373074342,11.90519483,2802.9,2801.4,10.83197045]
[1769373075337,11.90519483,2802.9,2801.4,11.72437177]
[1769373075535,11.90519483,2802.9,2801.5,11.81002071]
[1769373076351,1.08238135,2802.9,2801.5,11.81002071]
[1769373076545,0.001,2803.0,2801.5,11.81002071]
[1769373077045,0.001,2803.0,2801.8,10.09105551]
[1769373077238,11.09348807,2803.0,2801.5,10.98342842]
[1769373077570,10.20158129,2803.0,2801.5,10.98342842]
[1769373077756,0.001,2803.0,2801.7,10.09105551]
[1769373077958,0.001,2803.0,2801.9,10.09105551]
[1769373078281,0.001,2803.0,2801.5,10.09105551]
[1769373078282,10.20158129,2803.0,2801.5,10.09105551]
[1769373079339,10.20058129,2802.7,2801.3,0.002]
[1769373079680,10.20058129,2802.7,2801.3,10.09305551]
[1769373080256,11.09258455,2802.7,2801.3,10.09305551]
[1769373080575,1.10925846,2802.6,2801.3,10.09305551]
[1769373080776,11.30983975,2802.6,2801.3,10.09305551]
[1769373082069,10.43415159,2802.5,2801.3,0.002]
[1769373082474,10.43415159,2802.1,2801.3,0.002]
[1769373082673,10.43415159,2801.9,2801.0,0.002]
[1769373082861,11.31869645,2801.8,2801.0,0.002]
[1769373083068,11.31869645,2801.8,2800.7,0.002]
[1769373083069,10.20058129,2801.7,2800.7,0.002]
[1769373084663,0.2335703,2801.6,2800.7,0.002]
[1769373084865,0.2335703,2801.6,2800.0,10.09305551]
[1769373084866,10.56215159,2801.3,2800.0,10.09305551]
[1769373085368,10.70822939,2801.3,2800.0,10.09305551]
[1769373085564,0.2335703,2801.1,2800.0,10.09305551]
[1769373085798,1.07082294,2801.2,2800.1,10.09105551]
[1769373086001,0.748,2801.4,2800.1,10.09105551]
[1769373086651,0.2335703,2801.3,2800.1,10.09105551]
[1769373086857,0.9815703,2801.4,2800.1,10.09105551]
[1769373087588,1.11811516,2801.8,2800.2,0.08568368]
[1769373087774,0.876,2801.7,2800.3,10.09105551]
[1769373087974,1.11811516,2801.8,2800.7,10.09105551]
[1769373087975,0.19941152,2801.6,2800.7,10.09105551]
[1769373088285,0.89222692,2802.0,2800.7,10.09105551]
[1769373088286,10.94858129,2802.0,2800.7,10.09105551]
[1769373088487,0.748,2802.0,2800.7,10.98367693]
[1769373088716,0.748,2802.0,2800.7,10.09105551]
[1769373088860,0.748,2802.0,2800.7,10.9836819]
[1769373089056,0.2335703,2801.9,2800.6,10.09105551]
[1769373089379,10.51099751,2801.9,2800.6,10.09105551]
[1769373089975,10.51099751,2801.9,2800.1,10.09105551]
[1769373090158,0.11961113,2801.8,2800.1,10.98385939]
[1769373090354,10.32019242,2801.8,2800.2,10.98384481]
[1769373090575,1.9906382,2801.7,2800.2,10.98384481]
[1769373090783,10.43415159,2801.6,2800.2,10.09105551]
[1769373090984,10.43415159,2801.6,2800.2,10.98383234]
[1769373092063,10.43415159,2801.6,2800.2,10.09105551]
[1769373092262,10.43415159,2801.6,2800.3,10.98380117]
[1769373092568,1.15324744,2801.5,2800.3,10.98380533]
[1769373092775,0.2335703,2801.6,2800.9,0.002]
[1769373094493,0.2335703,2801.7,2800.9,0.002]
[1769373094699,1.87388664,2801.7,2800.9,0.002]
[1769373094873,1.8738977,2801.7,2800.9,0.002]
[1769373095068,1.1258977,2801.7,2800.9,0.002]
[1769373095269,10.20058129,2801.9,2800.9,0.002]
[1769373095593,1.12208179,2801.8,2800.9,10.6755403]
[1769373095793,0.748,2801.9,2800.9,10.6755403]
[1769373097159,6.35,2802.2,2800.9,11.56810565]
[1769373097364,10.26509139,2802.4,2801.3,10.6735403]
[1769373097365,0.001,2802.4,2801.3,10.6735403]
[1769373097693,0.89309928,2802.4,2801.0,10.6735403]
[1769373097862,10.26509139,2802.4,2801.0,10.6735403]
[1769373098057,1.03930914,2802.3,2801.0,10.6735403]
[1769373098801,1.78730914,2802.3,2801.2,10.6735403]
[1769373099091,0.748,2802.3,2801.2,10.6735403]
[1769373099282,0.001,2802.4,2801.2,11.56601368]
[1769373099592,0.001,2802.4,2801.2,10.6735403]
[1769373099760,0.89309312,2802.4,2801.2,10.6735403]
[1769373099963,0.001,2802.4,2801.2,10.6735403]
[1769373100175,0.001,2802.4,2801.2,11.56599951]
[1769373100371,0.001,2802.4,2801.2,11.56600317]
[1769373100596,0.001,2802.4,2801.4,10.6735403]
[1769373103495,0.001,2802.4,2801.4,11.56593703]
[1769373104360,0.001,2802.4,2801.6,10.6735403]
[1769373104782,0.001,2802.2,2801.6,10.6735403]
[1769373105487,0.001,2802.2,2801.6,11.5658781]
[1769373105667,0.001,2802.4,2801.9,10.6735403]
[1769373106902,0.001,2802.4,2801.5,10.6735403]
[1769373107269,0.001,2802.4,2801.5,11.56591115]
[1769373107468,0.001,2802.4,2801.6,10.6735403]
[1769373109100,0.001,2802.4,2801.3,10.6735403]
[1769373110775,10.26509139,2802.4,2801.0,13.9715403]
[1769373110975,10.26509139,2802.4,2801.1,11.56603178]
[1769373111901,10.26509139,2802.4,2801.1,10.6735403]
[1769373112366,1.11571823,2802.3,2801.1,11.56604214]
[1769373113282,1.11571823,2802.3,2801.1,11.65172582]
[1769373113471,0.001,2802.4,2801.1,11.65172582]
[1769373113670,0.001,2802.4,2801.3,0.08568368]
[1769373113969,0.001,2802.4,2801.4,10.6735403]
[1769373116578,10.26509139,2802.4,2801.3,0.002]
[1769373116787,10.26409139,2802.1,2801.3,0.002]
[1769373116984,0.001,2802.2,2801.3,0.002]
[1769373116985,11.29060053,2802.0,2801.3,0.002]
[1769373117173,12.18284912,2802.0,2801.3,0.002]
[1769373117602,12.49090607,2802.0,2801.3,0.002]
[1769373118478,10.26409139,2801.6,2800.9,0.002]
[1769373118686,12.03850053,2801.5,2800.6,0.002]
[1769373118993,0.33900685,2801.4,2800.6,0.002]
[1769373119306,1.23143231,2801.4,2800.6,0.002]
[1769373119499,11.4955237,2801.4,2800.6,0.002]
[1769373119880,10.49766169,2801.3,2800.0,0.002]
[1769373120098,1.1729094,2801.2,2800.3,10.6735403]
[1769373120398,0.3615703,2801.7,2800.5,10.6735403]
[1769373120703,0.748,2801.8,2800.5,10.6735403]
[1769373121003,1.91873232,2802.0,2800.9,10.6735403]
[1769373121004,1.02650914,2802.0,2800.9,10.6735403]
[1769373121311,0.001,2802.2,2801.1,10.6735403]
[1769373121678,0.001,2802.2,2801.3,10.6735403]
[1769373121898,0.001,2802.2,2801.5,10.6735403]
[1769373122098,0.001,2802.8,2801.8,10.6735403]
[1769373122907,0.89297039,2802.8,2801.4,10.6735403]
[1769373123108,0.001,2802.8,2801.4,10.6735403]
[1769373123293,0.001,2802.8,2801.4,11.56593005]
[1769373123496,0.001,2802.8,2801.4,10.6735403]
[1769373124205,0.001,2802.8,2801.4,11.56595076]
[1769373124576,0.001,2802.8,2801.8,10.39305814]
[1769373124779,0.001,2802.8,2801.6,10.39305814]
[1769373126581,10.64333688,2802.7,2801.3,10.39305814]
[1769373126886,0.3615703,2802.6,2801.3,10.39305814]
[1769373127099,0.04461755,2802.5,2801.3,10.39305814]
[1769373127500,10.64333688,2802.7,2801.4,10.39305814]
[1769373127697,0.001,2802.8,2801.4,10.47874182]
[1769373127910,0.89296718,2802.8,2801.4,10.39305814]
[1769373128212,11.53630406,2802.8,2801.4,10.39305814]
[1769373128993,0.001,2802.8,2801.4,10.39305814]
[1769373129193,0.89296931,2802.8,2801.5,10.39305814]
[1769373129408,0.001,2802.6,2801.5,10.39305814]
[1769373131897,0.001,2802.6,2801.5,11.2854219]
[1769373132107,0.001,2802.6,2801.7,10.39305814]
[1769373132329,0.001,2802.6,2801.8,10.39305814]
[1769373137430,0.001,2802.6,2801.5,10.62137174]
[1769373139044,10.4445519,2802.4,2801.3,0.002]
[1769373139541,0.2335703,2802.5,2801.0,0.002]
[1769373139542,10.4445519,2802.2,2801.0,0.002]
[1769373140117,0.892188,2802.1,2801.0,0.002]
[1769373140513,11.3367294,2802.2,2801.0,0.002]
[1769373140709,1.50333331,2802.1,2801.0,0.002]
[1769373140946,1.50333331,2802.1,2801.7,0.001]
[1769373141145,1.50333331,2802.1,2801.0,10.70705836]
[1769373141449,1.12563286,2802.5,2801.5,0.002]
[1769373141954,0.2335703,2802.5,2801.5,0.002]
[1769373142347,10.4455519,2802.6,2801.5,0.002]
[1769373142646,0.001,2802.6,2801.5,10.62337174]
[1769373144638,0.001,2802.6,2801.5,11.51573702]
[1769373144839,0.001,2802.6,2801.7,10.62137174]
[1769373145646,0.001,2802.6,2801.5,0.002]
[1769373146052,0.001,2802.6,2801.5,11.51574938]
[1769373147242,0.001,2802.6,2801.7,10.62137174]
[1769373147736,0.001,2802.6,2801.8,0.08568368]
[1769373147942,0.001,2802.6,2801.9,10.62137174]
[1769373150651,0.001,2802.6,2801.9,11.5136172]
[1769373150848,0.001,2802.6,2801.9,10.62137174]
[1769373151070,0.001,2802.6,2801.9,11.51362313]
[1769373151232,0.001,2802.8,2802.2,10.62137174]
[1769373152231,0.001,2802.8,2801.6,10.62137174]
[1769373152431,1.04565519,2802.8,2801.6,10.62137174]
[1769373152660,12.3821736,2802.8,2801.5,0.002]
[1769373152856,10.4445519,2802.7,2801.5,0.002]
[1769373153067,0.001,2802.4,2801.5,0.002]
[1769373153689,0.001,2802.4,2801.5,0.89436338]
[1769373153888,0.001,2802.4,2801.5,10.96958307]
[1769373154177,0.001,2802.4,2801.6,11.8599153]
[1769373154471,0.001,2802.4,2801.7,0.08568368]
[1769373154770,0.001,2802.4,2801.8,10.96758307]
[1769373155760,0.001,2802.4,2801.5,11.05526675]
[1769373155946,0.001,2802.4,2801.6,11.85992635]
[1769373156145,0.001,2802.4,2801.6,10.96758307]
[1769373157869,0.001,2802.4,2801.5,0.002]
[1769373158349,10.97020002,2802.4,2801.5,0.002]
[1769373158569,11.08056382,2802.3,2801.5,0.002]
[1769373158754,11.35725912,2802.3,2801.0,10.96758601]
[1769373159081,12.0773564,2802.2,2801.0,10.96758601]
[1769373159251,0.128,2802.1,2801.0,10.96758601]
[1769373159464,0.3568,2802.0,2801.0,10.96758601]
[1769373159659,0.128,2802.1,2801.0,10.96758601]
[1769373159971,1.22053564,2802.0,2801.0,10.96758601]
[1769373160483,0.3568,2801.9,2801.0,10.96758601]
[1769373160853,1.10815638,2802.2,2801.3,11.05326675]
[1769373161046,0.001,2802.4,2801.3,10.96758307]
[1769373161974,0.001,2802.4,2801.3,11.86001858]
[1769373162152,0.001,2802.4,2801.3,10.96758307]
[1769373162352,0.001,2802.4,2801.4,11.05326675]
[1769373162661,0.001,2802.4,2801.7,10.96758307]
[1769373162854,0.001,2802.4,2801.6,11.85990991]
[1769373163254,0.001,2802.4,2801.6,10.96758307]
[1769373164276,0.001,2802.4,2801.6,11.85992613]
[1769373164785,0.001,2802.4,2801.6,10.96758307]
[1769373165682,0.001,2802.4,2801.6,0.89234644]
[1769373165885,0.001,2802.4,2801.7,11.05326675]
[1769373166077,0.001,2802.4,2801.8,10.96758307]
[1769373167985,0.001,2802.4,2801.8,11.85986631]
[1769373169590,0.001,2802.4,2801.8,10.96758307]
[1769373170159,0.001,2802.4,2801.8,11.85986478]
[1769373170762,0.001,2802.4,2801.8,10.96758307]
[1769373171090,0.001,2802.4,2801.8,11.85985884]
[1769373171295,0.001,2802.4,2801.8,10.96758307]
[1769373172063,0.001,2802.4,2802.0,10.96758307]
[1769373172472,0.001,2802.8,2802.0,10.96758307]
[1769373173292,0.001,2802.8,2802.0,11.85979673]
[1769373173792,0.001,2802.8,2802.1,10.96758307]
[1769373174564,0.001,2802.8,2802.0,0.89221366]
[1769373174798,0.001,2802.8,2801.9,11.85981148]
[1769373175307,0.3578,2802.8,2801.8,10.96758307]
[1769373175514,0.3568,2802.6,2801.8,0.747]
[1769373176288,11.32600002,2802.6,2801.8,0.697]
[1769373176473,11.32600002,2802.6,2802.0,0.002]
[1769373176677,11.32600002,2802.6,2801.6,2.55]
[1769373176678,11.71488511,2802.6,2801.6,2.55]
[1769373176884,10.96920002,2802.4,2801.6,2.55]
[1769373177186,12.10062426,2802.3,2801.6,2.55]
[1769373177382,0.3568,2802.2,2801.6,2.55]
[1769373177695,11.32600002,2802.2,2801.6,2.55]
[1769373178269,10.96920002,2802.2,2801.6,2.55]
[1769373178980,1.13142424,2802.3,2801.6,2.55]
[1769373179509,1.13142424,2802.3,2801.2,0.002]
[1769373180507,10.96920002,2802.1,2801.2,0.002]
[1769373180668,10.96920002,2801.9,2801.2,0.002]
[1769373180869,0.128,2802.2,2801.0,2.94e-06]
[1769373180870,10.96920002,2801.7,2801.0,2.94e-06]
[1769373181387,0.875,2801.8,2800.0,0.002]
[1769373181388,11.32600002,2801.2,2800.0,0.002]
[1769373181582,11.75943798,2801.1,2800.0,0.002]
[1769373182281,11.09720002,2800.3,2798.7,11.05326675]
[1769373182482,5.99247112,2801.0,2799.1,12.49966009]
[1769373182483,0.747,2800.5,2799.1,12.49966009]
[1769373182776,0.747,2800.5,2799.1,1.44639334]
[1769373182777,12.14082002,2800.4,2799.1,1.44639334]
[1769373182977,12.44625798,2800.4,2799.1,1.44639334]
[1769373183287,1.17162,2800.4,2799.4,0.08568368]
[1769373183486,10.4619695,2801.0,2799.6,10.46886559]
[1769373183688,11.3379695,2801.3,2799.8,10.46886559]
[1769373183892,0.3568,2801.0,2799.8,10.46886559]
[1769373184099,10.4619695,2801.4,2799.9,10.46886559]
[1769373184298,10.4619695,2801.2,2799.4,10.38318191]
[1769373184597,10.4619695,2801.0,2799.4,11.27622924]
[1769373184805,10.4619695,2801.0,2799.4,10.38318191]
[1769373184967,10.4619695,2801.0,2799.5,0.08568368]
[1769373185295,0.3615703,2801.2,2799.7,10.46886559]
[1769373185495,11.35447601,2801.1,2799.7,10.38318191]
[1769373185698,11.96720833,2801.0,2799.7,10.38318191]
[1769373185898,11.96720833,2801.0,2799.3,0.97874361]
[1769373186101,11.96720833,2801.0,2799.5,0.97867978]
[1769373186426,11.96720833,2801.0,2799.7,11.36181486]
[1769373186604,10.68504513,2801.6,2800.1,10.46886559]
[1769373186775,10.4619695,2802.3,2800.6,0.08568368]
[1769373186978,10.4619695,2802.3,2800.8,10.46886559]
[1769373187172,10.4619695,2802.3,2801.0,0.08568368]
[1769373187373,10.4619695,2802.3,2800.5,0.89269773]
[1769373187374,10.4619695,2802.1,2800.5,0.89269773]
[1769373187578,0.89215616,2802.2,2800.5,0.89269773]
[1769373187579,11.59738207,2802.0,2800.5,0.89269773]
[1769373187795,11.59738207,2802.0,2800.6,0.08568368]
[1769373187999,11.59738207,2802.0,2800.6,10.46886559]
[1769373188601,11.59738207,2802.0,2800.6,10.38318191]
[1769373189509,11.59738207,2802.0,2800.7,0.08568368]
[1769373189700,1.15973821,2801.9,2800.7,10.38318191]
[1769373190283,0.128,2801.6,2800.3,11.13118191]
[1769373191716,0.128,2801.6,2800.4,0.08568368]
[1769373192213,1.15973821,2801.9,2800.4,10.46886559]
[1769373192415,0.128,2801.9,2800.4,10.46886559]
[1769373193085,0.128,2801.9,2800.6,10.46886559]
[1769373193414,0.128,2802.2,2800.8,10.46886559]
[1769373193612,1.02016002,2802.2,2800.8,10.38318191]
[1769373193812,11.48212952,2802.2,2800.8,10.38318191]
[1769373194016,10.4619695,2802.0,2800.4,10.46886559]
[1769373194208,10.4619695,2802.0,2800.4,11.36157794]
[1769373194404,0.3568,2801.9,2800.5,0.89269476]
[1769373194593,0.3568,2801.9,2800.5,10.38318191]
[1769373195007,0.3568,2801.9,2800.5,11.27586354]
[1769373195316,0.3568,2801.7,2800.5,11.27586354]
[1769373195518,0.3568,2801.7,2800.5,11.27585796]
[1769373196085,0.3568,2801.7,2800.5,10.38318191]
[1769373196520,0.3568,2801.7,2800.5,11.27587559]
[1769373196815,0.3568,2801.7,2800.5,10.38318191]
[1769373197020,0.3568,2801.7,2800.6,11.01489215]
[1769373197522,0.3568,2801.7,2800.4,0.9783949]
[1769373197523,0.3568,2801.7,2801.1,11.10057583]
[1769373197722,0.89211266,2802.4,2801.1,11.10057583]
[1769373197723,0.128,2802.3,2801.1,11.01489215]
[1769373198797,0.3568,2802.2,2801.1,11.01489215]
[1769373199005,0.128,2802.3,2801.1,11.01489215]
[1769373199395,0.128,2802.3,2800.7,0.08568368]
[1769373199396,10.67811904,2802.3,2800.7,11.10057583]
[1769373199592,11.44233888,2802.0,2800.5,2.55]
[1769373199816,10.55011904,2802.0,2800.5,14.54325037]
[1769373200024,10.55011904,2802.0,2800.5,2.55]
[1769373200407,10.67811904,2801.9,2800.5,2.55]
[1769373201530,10.67811904,2801.9,2800.5,13.56489215]
[1769373201730,0.128,2801.7,2800.5,13.56489215]
[1769373201931,0.3568,2801.6,2800.9,11.01489215]
[1769373202112,0.2345703,2802.1,2801.0,0.08568368]
[1769373202627,0.3568,2802.0,2801.0,0.08568368]
[1769373202926,0.001,2802.1,2801.2,0.08568368]
[1769373203127,0.001,2802.1,2801.3,11.10057583]
[1769373203727,0.001,2802.1,2801.4,0.08568368]
[1769373203933,0.001,2802.1,2801.4,11.10057583]
[1769373204434,0.001,2802.1,2801.4,11.01489215]
[1769373205546,0.001,2802.1,2800.8,0.08568368]
[1769373205547,0.001,2802.1,2800.8,0.89259329]
[1769373205737,1.0561119,2802.1,2800.8,0.89260026]
[1769373205909,1.0561119,2802.1,2800.8,11.01489215]
[1769373206114,0.3568,2802.0,2800.8,11.01489215]
[1769373206948,1.0561119,2802.1,2801.3,11.01489215]
[1769373207137,0.001,2802.1,2801.0,11.01489215]
[1769373207449,11.03491904,2801.8,2800.3,11.76289215]
[1769373207611,11.03491904,2801.8,2800.3,12.65564636]
[1769373207811,11.92721826,2801.8,2800.3,12.65564636]
[1769373208338,11.92721826,2801.8,2800.3,12.65564473]
[1769373208650,0.3568,2801.6,2800.3,11.76289215]
[1769373210048,0.3568,2801.6,2800.4,0.08568368]
[1769373210349,0.001,2802.1,2801.1,0.08568368]
[1769373210546,0.001,2802.1,2800.9,11.10057583]
[1769373210753,0.001,2802.1,2801.2,11.10057583]
[1769373211852,0.001,2802.1,2800.8,11.01489215]
[1769373212632,0.001,2801.7,2800.8,11.01489215]
[1769373212847,0.001,2801.7,2800.8,11.90748984]
[1769373213046,0.001,2801.7,2800.9,10.9517075]
[1769373213248,0.001,2801.7,2801.1,10.9517075]
[1769373213966,0.001,2801.7,2801.3,10.9517075]
[1769373214329,0.001,2801.7,2801.3,10.86602382]
[1769373216064,0.001,2801.7,2801.0,10.86602382]
[1769373217160,0.001,2801.7,2801.1,0.08568368]
[1769373217456,0.001,2801.7,2801.1,10.9517075]
[1769373217673,0.001,2801.7,2801.3,10.9517075]
[1769373217875,0.001,2802.1,2801.3,10.9517075]
[1769373219068,0.001,2802.1,2800.9,10.86602382]
[1769373219844,10.58064332,2802.1,2800.7,2.55]
[1769373220045,10.58064332,2802.1,2800.6,10.86602382]
[1769373220046,11.63770765,2802.0,2800.6,10.86602382]
[1769373220471,11.63770765,2802.0,2800.4,0.748]
[1769373220472,10.70764332,2801.7,2800.4,0.748]
[1769373222654,5.55809581,2801.9,2800.5,10.9517075]
[1769373222960,5.55809581,2801.9,2800.9,0.08568368]
[1769373222961,0.3568,2801.9,2800.9,0.08568368]
[1769373223386,0.3568,2801.9,2800.7,10.86602382]
[1769373223590,1.24906289,2801.9,2800.7,10.86602382]
[1769373224079,1.24906289,2801.9,2800.8,0.002]
[1769373224581,10.70864332,2801.8,2800.8,0.002]
[1769373224772,1.55257062,2801.7,2800.8,0.002]
[1769373225659,12.13221394,2801.7,2800.8,0.002]
[1769373227674,13.02452964,2801.7,2800.8,0.002]
[1769373227985,10.57964332,2801.3,2800.5,0.002]
[1769373228279,12.11861723,2801.2,2800.5,0.002]